[Event "US Masters 2022"]
[Site "Charlotte"]
[Date "2022.11.28"]
[Round "9.13"]
[White "Rahul Srivatshav P"]
[Black "Fus, Jakub"]
[Result "1/2-1/2"]
[ECO "E20"]
[WhiteElo "2498"]
[BlackElo "2427"]
[Annotator "TA"]
[PlyCount "88"]
[EventDate "2022.11.23"]
[EventType "swiss"]
[EventCountry "USA"]
[SourceTitle "playchess.com"]
[Source "ChessBase"]
[SourceQuality "1"]
[TimeControl "5400+30"]

{[%evp 12,88,6,8,12,19,14,-8,-16,-19,0,-4,-16,-50,-18,-21,-29,-27,-25,-30,0,0,0,2,13,0,2,0,28,20,42,33,51,46,48,18,18,6,11,8,18,0,27,18,18,12,56,49,61,59,45,29,93,6,14,0,0,0,0,-5,0,0,13,0,0,0,0,0,0,0,0,0,0,0,0,0,0,0,0]} 1. d4 {[%emt 0:06:07]} e6 {[%emt 0:00:23]} 2. c4 {[%emt 0:00:40]} Nf6 {[%emt 0:00:08]} 3. Nc3 {[%emt 0:00:07]} Bb4 {[%emt 0:00:07]} 4. f3 {[%emt 0:00:03]} d5 {[%emt 0:00:20]} 5. a3 {[%emt 0:00:09][%cal Ba2a3,Ba3a4][%mdl 32]} Bxc3+ {[%emt 0:00:07]} 6. bxc3 {[%emt 0:00:05]} c6 {[%emt 0:00:06]} 7. e3 {[%emt 0:06:36] The old main line.} O-O {[%emt 0:00:36] E20: Nimzo-Indian: 4 g3 and 4 f3.} 8. Bd3 {[%emt 0:06:16]} b6 {[%emt 0:00:29] [#]} 9. a4 $146 {[%emt 0:12:47]} ({Predecessor:} 9. Ne2 Ba6 10. cxd5 Bxd3 11. Qxd3 cxd5 12. e4 Qc8 13. Bg5 Nfd7 14. O-O Qa6 15. Qe3 Nc6 {0-1 (57) Sarana,A (2675)-Kamsky,G (2661) Chess.com INT 2022}) 9... Ba6 {[%emt 0:02:16]} 10. cxd5 {[%emt 0:00:15]} Bxd3 {[%emt 0:00:33]} ({Don't take} 10... Nxd5 11. e4 $14) 11. Qxd3 {[%emt 0:00:08]} cxd5 {[%emt 0:00:10]} 12. a5 {[%emt 0:04:58]} Nc6 {[%emt 0:04:12]} 13. axb6 {[%emt 0:00:44]} Qxb6 {[%emt 0:09:19]} 14. Qa6 {[%emt 0:03:36]} Nd7 {[%emt 0:02:51]} 15. Ne2 {[%emt 0:01:40][%cal Bg1e2,Be2f4,Bf4d3,Bd3c5,Bc5b7,Bb7d6][%mdl 32]} Qc7 {[%emt 0:02:01]} 16. O-O {[%emt 0:00:51]} Nb6 {[%emt 0:01:29]} 17. e4 {[%emt 0:03:58]} Rfe8 {[%emt 0:04:26]} 18. Nf4 {[%emt 0:05:21]} Rad8 {[%emt 0:04:17]} 19. exd5 {[%emt 0:06:14]} exd5 {[%emt 0:13:16]} 20. Nd3 {[%emt 0:05:15]} Qd6 {[%emt 0:06:36]} 21. Bf4 {[%emt 0:01:26]} Qd7 {[%emt 0:04:12]} 22. Nc5 {[%emt 0:02:14]} Qc8 {[%emt 0:01:01]} 23. Nb7 {[%emt 0:03:23]} Rd7 {[%emt 0:00:07]} 24. Nd6 {[%emt 0:00:37]} Qxa6 {[%emt 0:01:10]} 25. Rxa6 {[%emt 0:00:05]} Re2 {[%emt 0:08:09]} 26. Rb1 {[%emt 0:04:42]} h6 {[%emt 0:05:17]} 27. Nb5 {[%emt 0:01:16][%cal Ob5a7]} Rc2 {[%emt 0:00:28]} 28. Bd6 {[%emt 0:06:08]} Nd8 {[%emt 0:04:10]} 29. Rxa7 {[%emt 0:01:54]} Ne6 {[%emt 0:03:24]} 30. Rxd7 $1 {[%emt 0:00:41]} Nxd7 {[%emt 0:00:03]} 31. Kf1 {[%emt 0:02:41]} h5 {[%emt 0:01:17]} (31... g5 $11 {remains equal.}) 32. Re1 {[%emt 0:02:39]} (32. h4 $16) 32... Nb6 $11 {[%emt 0:00:52] The position is equal.} 33. Re2 {[%emt 0:00:18]} Rc1+ {[%emt 0:00:04]} 34. Kf2 {[%emt 0:00:01]} Nc4 {[%emt 0:00:28]} 35. Re1 {[%emt 0:00:06]} Rc2+ {[%emt 0:00:08]} 36. Re2 $1 {[%emt 0:00:02]} Rc1 {[%emt 0:00:13]} 37. Kg3 {[%emt 0:01:22]} Nxd6 {[%emt 0:04:01]} 38. Nxd6 {[%emt 0:00:05]} Rxc3 {[%emt 0:00:06][%mdl 4096] Endgame KRN-KRN} 39. Ra2 {[%emt 0:00:37]} Rc7 {[%emt 0:05:44]} 40. Ra8+ {[%emt 0:02:15]} Kh7 {[%emt 0:00:02]} 41. Ra5 {[%emt 0:00:05]} Rd7 {[%emt 0:00:44]} 42. Nf5 {[%emt 0:00:37]} g6 {[%emt 0:00:14]} 43. Ne3 {[%emt 0:00:04]} Nxd4 {[%emt 0:00:06]} 44. Nxd5 {[%emt 0:00:07] [#] Strongly threatening Nf6+.} Kg7 {[%emt 0:00:37] Prevents Nf6.   Weighted Error Value: White=0.09 (flawless) /Black=0.08 (flawless)} 1/2-1/2

[Event "US Masters 2022"]
[Site "Charlotte"]
[Date "2022.11.28"]
[Round "9.14"]
[White "Grinberg, Eyal"]
[Black "Ippolito, Dean"]
[Result "1-0"]
[ECO "C00"]
[WhiteElo "2491"]
[BlackElo "2368"]
[Annotator "TA"]
[PlyCount "141"]
[EventDate "2022.11.23"]
[EventType "swiss"]
[EventCountry "USA"]
[SourceTitle "playchess.com"]
[Source "ChessBase"]
[SourceQuality "1"]
[TimeControl "5400+30"]

{[%evp 15,141,7,8,4,9,12,0,0,0,0,0,0,0,0,14,14,0,10,15,0,0,0,29,10,10,8,5,21,64,29,50,48,49,20,25,-8,42,24,48,50,69,25,26,17,84,90,88,33,40,37,45,31,59,57,65,58,63,39,49,37,54,33,48,0,8,-49,22,-38,-29,-30,0,0,3,8,12,7,12,19,17,12,9,0,29,37,53,22,148,146,413,418,391,402,393,382,574,558,547,543,547,435,420,416,403,339,29972,29972,29972,29972,29978,29972,29971,12839,29986,29987,29987,29984,29983,12848,29976,11993,11993,6816,6846,6816,6083,5579,1272,1216]} 1. e4 {[%emt 0:11:10]} e5 {[%emt 0:00:05]} 2. Nf3 {[%emt 0:00:35]} Nc6 {[%emt 0:00:10]} 3. Bb5 {[%emt 0:00:08]} Nf6 {[%emt 0:00:07]} 4. d3 {[%emt 0:00:25]} Bc5 {[%emt 0:00:20]} 5. c3 {[%emt 0:00:47]} d5 {[%emt 0:00:27]} 6. Nbd2 {[%emt 0:10:35]} O-O {[%emt 0:01:38]} 7. O-O {[%emt 0:00:16]} dxe4 {[%emt 0:11:34]} 8. dxe4 {[%emt 0:01:17]} Qe7 {[%emt 0:00:17]} 9. Qc2 {[%emt 0:02:54] C00: French: Unusual White 2nd moves.} a5 {[%emt 0:03:58]} 10. a4 {[%emt 0:06:43]} Nb8 {[%emt 0:00:37]} 11. Be2 {[%emt 0:00:55] The position is equal.} Nbd7 {[%emt 0:06:38] 11...Bg4 is a critical line.} 12. Nc4 {[%emt 0:00:44][%cal Bd2c4,Bc4e3,Be3f5][%mdl 32]} Re8 {[%emt 0:04:41]} 13. Bg5 {[%emt 0:08:36]} b6 {[%emt 0:00:07] [#]} 14. Ne3 $146 {[%emt 0:03:16]} ({Predecessor:} 14. Ncd2 h6 15. Bh4 Bb7 16. Bc4 Nf8 17. Bg3 Ng6 18. Rfe1 Bc6 19. Nh4 Nxh4 20. Bxh4 Rad8 21. Nf3 {0-1 (36) Nguyen,M (1491)-Vu,Q (2034) Ho Chi Minh City 2017}) 14... Bb7 {[%emt 0:02:14] Prevents Nd5.} 15. Nf5 {[%emt 0:04:01]} Qe6 {[%emt 0:00:51]} 16. Nd2 {[%emt 0:00:49]} Kh8 {[%emt 0:15:35][%cal Of6e4] [#] ...Nxe4! is the strong threat.} 17. Ne3 {[%emt 0:16:59]} (17. Rad1 {looks sharper.} h6 18. Bh4 Bxe4 19. Nxe4 Qxf5 20. Bb5) 17... h6 {[%emt 0:10:45]} 18. Bc4 {[%emt 0:01:53]} Qe7 {[%emt 0:05:10]} 19. Nf5 {[%emt 0:00:40]} Qf8 {[%emt 0:00:05]} 20. Bh4 {[%emt 0:00:19]} g6 {[%emt 0:01:59]} 21. Ne3 {[%emt 0:00:35]} c6 {[%emt 0:08:00]} 22. Rae1 {[%emt 0:01:10]} Ba6 {[%emt 0:02:41]} 23. Bxa6 {[%emt 0:03:19]} Rxa6 {[%emt 0:00:03]} 24. Kh1 {[%emt 0:00:07]} Raa8 {[%emt 0:02:16]} 25. Qb3 {[%emt 0:01:46]} Nh5 {[%emt 0:01:16]} ({Better is} 25... Kg7 $11) 26. Ndc4 $14 {[%emt 0:01:36]} Re6 {[%emt 0:01:13]} 27. Ng4 {[%emt 0:02:50]} Kh7 {[%emt 0:04:42]} 28. Qd1 {[%emt 0:02:13]} Qe8 {[%emt 0:00:56]} 29. Qd2 {[%emt 0:02:27]} Bf8 {[%emt 0:01:27]} (29... g5 $11 30. Bg3 (30. Bxg5 hxg5 31. Rd1 Ra7 $15) 30... Nf4) 30. Rd1 $16 {[%emt 0:00:25] White has more active pieces.} Nc5 {[%emt 0:00:52]} 31. Qc2 {[%emt 0:01:05]} (31. Nxb6 $16 Rb8 32. Nd7 Nxd7 33. Qxd7) 31... b5 $14 {[%emt 0:04:23]} 32. axb5 {[%emt 0:01:30]} cxb5 {[%emt 0:00:02]} 33. Nce3 {[%emt 0:00:06]} (33. Nxa5 {is interesting.} g5 34. Bg3 Rxa5 35. b4) 33... Qc6 {[%emt 0:00:17]} 34. Nd5 {[%emt 0:00:48]} Bg7 {[%emt 0:03:56][%cal Oc5e4]} 35. f3 {[%emt 0:00:55]} a4 {[%emt 0:01:27]} 36. Bf2 {[%emt 0:01:07]} Nb3 {[%emt 0:00:20]} 37. Be3 {[%emt 0:02:50]} Rd6 {[%emt 0:00:56]} 38. Nb4 {[%emt 0:04:45]} Qc4 {[%emt 0:01:14]} 39. Kg1 {[%emt 0:02:23]} (39. Rxd6 $14 Qxf1+ 40. Bg1) 39... Rad8 {[%emt 0:02:17]} 40. Nd5 {[%emt 0:02:52] Against Nf4} (40. Rxd6 $11 Rxd6 41. Rb1) 40... Nd4 {[%emt 0:03:16]} 41. Qb1 {[%emt 0:01:54]} (41. cxd4 $2 {is the wrong capture.} Qxc2 42. dxe5 {[#]} Rxd5 $1 {[%mdl 512]} 43. exd5 Qxb2 $19) (41. Qf2 $1 $11 Ne2+ 42. Kh1) 41... Ne2+ $15 {[%emt 0:00:19]} 42. Kh1 {[%emt 0:00:45]} Nef4 {[%emt 0:00:23]} (42... f5 {feels hotter.} 43. Nf2 a3 44. bxa3 fxe4 45. fxe4 Nhf4) 43. Bxf4 {[%emt 0:00:20]} Nxf4 {[%emt 0:01:28]} 44. Nge3 $36 {[%emt 0:00:22][%mdl 2048] White is pushing. Pair of Knights!} Qc5 {[%emt 0:00:55]} 45. g3 {[%emt 0:00:39]} Nxd5 {[%emt 0:00:25]} 46. Nxd5 {[%emt 0:00:02]} Qc4 {[%emt 0:00:35]} 47. Kg2 {[%emt 0:00:32]} h5 {[%emt 0:00:11]} 48. Qd3 {[%emt 0:00:18]} Qb3 {[%emt 0:00:11]} 49. Qe2 {[%emt 0:00:27]} Kh8 {[%emt 0:00:31]} 50. Ra1 {[%emt 0:00:56]} Rxd5 {[%emt 0:00:52]} (50... Bf8 $11 {remains equal.}) 51. exd5 $16 {[%emt 0:00:11]} Qxd5 $2 {[%emt 0:00:29][%mdl 8192] A mistake that costs the game.} (51... Kh7 $16 52. Rfd1 Bf8) 52. Rad1 $18 {[%emt 0:00:09]} Qa8 {[%emt 0:00:04]} 53. Rxd8+ {[%emt 0:00:18]} ({Not} 53. Qxb5 Rb8 54. Qe2 Bf6 $18) 53... Qxd8 {[%emt 0:00:02]} 54. Qxb5 {[%emt 0:00:08][%mdl 4096] Endgame KQR-KQB} a3 {[%emt 0:00:36]} (54... h4 $142 55. gxh4 Qd2+ 56. Kh1 Qf4) 55. bxa3 {[%emt 0:00:29]} Qd2+ {[%emt 0:00:02]} 56. Rf2 {[%emt 0:00:28]} Qxc3 {[%emt 0:00:02]} 57. Qe8+ {[%emt 0:01:49]} Kh7 {[%emt 0:00:05]} 58. Qxf7 {[%emt 0:00:19]} Qxa3 {[%emt 0:00:02]} 59. Ra2 {[%emt 0:00:40]} Qd3 {[%emt 0:02:24]} (59... Qc1 $18 60. Ra7 Qc2+ 61. Kh3 Qf5+ 62. Qxf5 gxf5) 60. Ra7 {[%emt 0:00:38][%csl Ga7][%cal Rf7g7]} Qc2+ {[%emt 0:00:34]} 61. Kh3 {[%emt 0:00:08][%csl Ga7][%cal Rf7g7]} Qc8+ {[%emt 0:01:18]} 62. Rd7 {[%emt 0:00:11][%csl Gd7][%cal Rf7g7]} Qh8 {[%emt 0:00:11]} 63. Kg2 {[%emt 0:00:46]} (63. Kh4 $142 Qg8 64. Kg5 Kh8 65. Qxg8+ Kxg8 66. Kxg6 Kf8 67. Rxg7 Ke8 68. Kxh5) 63... Kh6 {[%emt 0:00:15]} 64. Rd6 {[%emt 0:00:18][%csl Gd6][%cal Rf7g6]} Qh7 {[%emt 0:00:03]} 65. h4 {[%emt 0:00:52]} Bh8 {[%emt 0:00:36]} 66. Qf5 {[%emt 0:00:46]} (66. Qe8 $142 Qg7 67. Rd7 e4 68. Rxg7 Bxg7 69. fxe4 Bd4 70. e5 Kh7 71. Qe7+ Kh6 72. e6) 66... Qg7 {[%emt 0:00:54]} 67. Qg5+ {[%emt 0:00:27]} (67. Qe6 $142 Qh7 68. Qc8 Qg7 69. Rd7 e4 70. Qc1+ Kh7 71. Rxg7+ Kxg7 72. fxe4) 67... Kh7 {[%emt 0:00:03] White is clearly winning.} 68. Re6 {[%emt 0:00:15] White threatens Re7 and mate.} Qg8 {[%emt 0:01:26]} 69. Re7+ {[%emt 0:00:27]} Bg7 {[%emt 0:00:04]} 70. Qxe5 {[%emt 0:00:14]} Kh8 {[%emt 0:00:06]} 71. Qe6 {[%emt 0:00:11] Weighted Error Value: White=0.16 (very precise) /Black=0.35} 1-0

[Event "US Masters 2022"]
[Site "Charlotte"]
[Date "2022.11.28"]
[Round "9.15"]
[White "Bodek, Michael"]
[Black "Nagy, Gabor"]
[Result "1/2-1/2"]
[ECO "B43"]
[WhiteElo "2427"]
[BlackElo "2482"]
[Annotator "TA"]
[PlyCount "43"]
[EventDate "2022.11.23"]
[EventType "swiss"]
[EventCountry "USA"]
[SourceTitle "playchess.com"]
[Source "ChessBase"]
[SourceQuality "1"]
[TimeControl "5400+30"]

{[%evp 16,30,-12,-8,0,-2,-2,-10,-17,-23,12,13,8,10,12,9,9]} 1. e4 {[%emt 0:00:02]} c5 {[%emt 0:00:57]} 2. Nf3 {[%emt 0:00:07]} e6 {[%emt 0:00:22]} 3. Nc3 {[%emt 0:00:34]} a6 {[%emt 0:00:51]} 4. g3 {[%emt 0:00:20]} b5 {[%emt 0:00:56][%cal Bb7b5,Bb5b4][%mdl 32]} 5. d4 {[%emt 0:01:21]} cxd4 {[%emt 0:00:13]} 6. Nxd4 {[%emt 0:00:05]} Bb7 {[%emt 0:01:05]} 7. Bg2 {[%emt 0:00:34]} Nf6 {[%emt 0:01:53]} 8. O-O {[%emt 0:01:50][%cal Bh1f1,Bf1e1,Be1e4][%mdl 32]} b4 {[%emt 0:02:11]} 9. Na4 {[%emt 0:06:57]} Bxe4 {[%emt 0:00:39] B43: Sicilian: Kan Variation: 5 Nc3.} 10. Bxe4 {[%emt 0:00:09]} Nxe4 {[%emt 0:00:10]} 11. c4 {[%emt 0:00:03]} bxc3 {[%emt 0:07:27]} 12. Re1 {[%emt 0:05:43]} d5 {[%emt 0:02:12][%cal Oc3c2]} 13. Nxc3 {[%emt 0:02:17][%cal Od4e6] [#] Black must now prevent Nxe6! The position is equal.} Be7 {[%emt 0:01:48] is the legacy move (13...Nxc3).} 14. Nxe4 {[%emt 0:02:21]} dxe4 {[%emt 0:00:17]} 15. Rxe4 {[%emt 0:00:38]} Qd5 {[%emt 0:03:49] [#] An interesting draw.   Weighted Error Value: White=0.03 (flawless) /Black=0.08 (flawless)} {Predecessor:} 16. Re1 $146 Bf6 17. Qa4+ Qd7 18. Qxd7+ Nxd7 19. Be3 O-O 20. Rad1 Ne5 21. b3 Rfd8 22. Kg2 {½-½ (66) Everett,E (2230)-Schulte,F (2126) Erfurt 2019} 1/2-1/2

[Event "US Masters 2022"]
[Site "Charlotte"]
[Date "2022.11.28"]
[Round "9.16"]
[White "Mishra, Abhimanyu"]
[Black "Hilby, Craig"]
[Result "1-0"]
[ECO "E06"]
[WhiteElo "2549"]
[BlackElo "2411"]
[Annotator "TA"]
[PlyCount "107"]
[EventDate "2022.11.23"]
[EventType "swiss"]
[EventCountry "USA"]
[SourceTitle "playchess.com"]
[Source "ChessBase"]
[SourceQuality "1"]
[TimeControl "5400+30"]

{[%evp 18,107,10,7,6,0,0,0,0,0,47,31,43,38,13,0,0,0,31,28,28,19,58,64,42,37,37,6,4,0,0,0,0,0,0,0,0,-7,0,0,0,0,0,0,16,3,15,16,16,16,12,0,16,16,52,46,45,39,46,43,43,43,42,39,41,39,38,27,41,43,164,170,260,256,242,257,447,449,459,399,1831,1183,29979,29980,29980,29981,29981,29982,29982,29983,29984,29982]} 1. d4 {[%emt 0:00:02]} d5 {[%emt 0:00:06]} 2. c4 {[%emt 0:00:07]} e6 {[%emt 0:00:04]} 3. Nf3 {[%emt 0:00:18]} Nf6 {[%emt 0:00:10]} 4. g3 {[%emt 0:00:11]} Bb4+ {[%emt 0:00:22]} 5. Bd2 {[%emt 0:00:35][%cal Bc1d2,Bd2f4,Bf4e5][%mdl 32]} Be7 {[%emt 0:00:07]} 6. Bg2 {[%emt 0:01:04]} O-O {[%emt 0:00:41]} 7. O-O {[%emt 0:01:36]} c6 {[%emt 0:00:10]} 8. Qc2 {[%emt 0:01:19]} b6 {[%emt 0:02:39]} 9. Bf4 {[%emt 0:02:30]} Bb7 {[%emt 0:01:24]} 10. Nbd2 {[%emt 0:03:33]} c5 {[%emt 0:01:33] E06: Closed Catalan: Early deviations.} 11. Rfd1 {[%emt 0:06:32]} (11. dxc5 {looks sharper.} bxc5 12. Ne5 Qc8 13. cxd5 Nxd5 14. Ndc4) 11... Nbd7 {[%emt 0:02:00]} 12. dxc5 {[%emt 0:06:26]} bxc5 {[%emt 0:01:25] The position is equal.} 13. Ne5 {[%emt 0:02:05]} Nxe5 {[%emt 0:11:59]} (13... Nh5 $11) 14. Bxe5 $14 {[%emt 0:00:08]} Qb6 {[%emt 0:00:42]} 15. cxd5 {[%emt 0:06:41]} exd5 {[%emt 0:00:19] [#]} 16. b3 $146 {[%emt 0:13:05]} ({Predecessor:} 16. Nb3 Ne4 17. Bxe4 dxe4 18. Qc3 f6 19. Bf4 Ba6 20. Qc2 f5 21. Be3 Rac8 22. Qd2 {1-0 (107) Phoobalan,P (2328)-Michelle,C (2084) Chennai 2013}) 16... Rfd8 {[%emt 0:04:21]} 17. Rac1 {[%emt 0:02:33]} a5 {[%emt 0:03:26]} 18. Bxf6 {[%emt 0:06:58]} (18. e3 {is interesting.} Ng4 19. Bb2 Qe6 20. Nf3) 18... Qxf6 {[%emt 0:00:40]} 19. e4 {[%emt 0:00:12] Inhibits a4.} a4 {[%emt 0:07:06]} (19... d4 {is interesting.} 20. e5 Qa6 21. Bxb7 Qxb7 22. Qe4 Qd5) 20. exd5 {[%emt 0:07:43]} Bxd5 {[%emt 0:00:09]} 21. Bxd5 {[%emt 0:03:09]} (21. Ne4 {seems wilder.} Qe5 22. bxa4 Be6 23. Re1) 21... Rxd5 {[%emt 0:02:36]} 22. bxa4 {[%emt 0:04:43]} (22. Ne4 $5 {[%cal Re4f6]} Rxd1+ 23. Rxd1 $14) 22... Qc6 {[%emt 0:07:05]} 23. Nc4 {[%emt 0:05:49] [#] Threatens to win with Rxd5.} Rxd1+ {[%emt 0:01:04]} 24. Qxd1 {[%emt 0:00:45]} Qxa4 {[%emt 0:04:43]} 25. Qxa4 {[%emt 0:01:17]} Rxa4 $11 {[%emt 0:00:03][%mdl 4096] Endgame KRB-KRN} 26. a3 {[%emt 0:00:08]} Bf6 {[%emt 0:05:24]} 27. Kf1 {[%emt 0:00:51]} Kf8 {[%emt 0:00:35]} 28. Ke2 {[%emt 0:00:44]} Ra7 {[%emt 0:00:47]} 29. Kd3 {[%emt 0:06:22]} Ke7 {[%emt 0:00:37]} 30. Rb1 {[%emt 0:03:04]} Ra4 {[%emt 0:08:43]} 31. g4 {[%emt 0:05:20]} Bd4 {[%emt 0:05:42]} 32. Rb7+ {[%emt 0:00:47]} Ke6 {[%emt 0:00:32]} 33. f4 {[%emt 0:00:41][%cal Bf2f4,Bf4f5][%mdl 32]} g6 {[%emt 0:00:28]} 34. h4 {[%emt 0:03:08][%cal Bh2h4,Bh4h5][%mdl 32]} Bf2 {[%emt 0:04:51]} 35. h5 {[%emt 0:02:14]} Bg3 {[%emt 0:04:28]} 36. Rb6+ {[%emt 0:01:03]} Ke7 {[%emt 0:00:01]} 37. f5 {[%emt 0:00:33]} Bc7 {[%emt 0:05:00]} 38. Rc6 {[%emt 0:01:57]} Kd7 {[%emt 0:04:23]} 39. Rxc5 {[%emt 0:00:30]} gxh5 {[%emt 0:00:07]} 40. gxh5 {[%emt 0:00:08]} Ra6 {[%emt 0:00:11]} 41. Rd5+ {[%emt 0:02:54]} Ke7 {[%emt 0:00:04]} 42. Kd4 {[%emt 0:00:41]} Kf6 {[%emt 0:04:42]} 43. Kc5 {[%emt 0:00:16]} Bg3 {[%emt 0:00:04] [#] Loses the game.} ({Black should try} 43... Ra7 $14) 44. Kb5 $1 $18 {[%emt 0:00:32]} Ra8 {[%emt 0:00:12]} (44... Ra7 $142 45. a4 Kg5) 45. a4 {[%emt 0:00:25] Strongly threatening Nb6.} Be1 {[%emt 0:01:08]} 46. a5 {[%emt 0:00:39] Black must now prevent a6.} Bxa5 {[%emt 0:00:53]} (46... Rb8+ 47. Nb6 Bxa5) 47. Nxa5 {[%emt 0:00:05] KRN-KR} Rg8 {[%emt 0:00:07]} 48. Nc4 {[%emt 0:00:55] aiming for Nd6.} Rg5 $2 {[%emt 0:00:34]} (48... Re8 49. Nd6 Re7) 49. Nd6 {[%emt 0:00:05] Intending Ne4+ and mate.} Rxh5 {[%emt 0:00:18]} 50. Ne4+ {[%emt 0:00:39] White mates.} Kg7 {[%emt 0:00:01]} 51. f6+ {[%emt 0:00:46]} Kg6 {[%emt 0:00:02]} 52. Rxh5 {[%emt 0:00:05]} Kxh5 {[%emt 0:00:03]} 53. Kc6 {[%emt 0:00:05]} Kg6 {[%emt 0:00:44]} 54. Kd7 {[%emt 0:00:06] Weighted Error Value: White=0.03 (flawless) /Black=0.37} 1-0

[Event "US Masters 2022"]
[Site "Charlotte"]
[Date "2022.11.28"]
[Round "9.17"]
[White "Plotkin, Mark"]
[Black "Druska, Juraj"]
[Result "1/2-1/2"]
[WhiteElo "2361"]
[BlackElo "2511"]
[Annotator "TA"]
[PlyCount "18"]
[EventDate "2022.11.23"]
[EventType "swiss"]
[EventCountry "USA"]
[SourceTitle "playchess.com"]
[Source "ChessBase"]
[SourceQuality "1"]
[TimeControl "5400+30"]

{[%evp 9,18,18,25,10,-42,20,20,-7,9,8,8]} 1. e4 {[%emt 0:00:01]} c5 {[%emt 0:03:58]} 2. Nf3 {[%emt 0:00:28]} Nc6 {[%emt 0:00:07]} 3. c3 {[%emt 0:00:06]} d5 {[%emt 0:00:26]} 4. exd5 {[%emt 0:00:07]} Qxd5 {[%emt 0:00:04]} 5. d4 {[%emt 0:00:21]} Bf5 {[%emt 0:00:04]} 6. dxc5 {[%emt 0:01:19] B22: Sicilian: 2 c3.} Qxd1+ {[%emt 0:00:55]} 7. Kxd1 {[%emt 0:00:02]} Nf6 {[%emt 0:06:55] The position is equal.} 8. b4 {[%emt 0:05:38][%cal Bb2b4,Bb4b5][%mdl 32] [#]} a5 $146 {[%emt 0:11:52]} (8... g6 $5 {[%cal Rf6e4]}) ({Predecessor:} 8... Ng4 9. Ke1 O-O-O 10. Be2 g6 11. h3 Nge5 12. Nxe5 Nxe5 13. Be3 Nd3+ 14. Kf1 Bg7 15. a3 {0-1 (28) Verheij,D (1850)-Van Delft,M (2380) Vlissingen 2022}) 9. b5 {[%emt 0:00:55]} Nd8 $1 {[%emt 0:00:23] An even fight not without its subleties.   Weighted Error Value: White=0.18 (very precise) /Black=0.05 (flawless)} 1/2-1/2